Department family,Entity,Date,Expense type,Expense area,Supplier,Transaction number,Amount,VAT registration number,
Department for Business Energy and Industrial Strategy,Intellectual Property Office,28/12/2017,Accommodation,People Places & Services Direc,Healthy Workstations Ltd,31713,687.60,Not Applicable,
Department for Business Energy and Industrial Strategy,Intellectual Property Office,14/12/2017,Accommodation,People Places & Services Direc,Healthy Workstations Ltd,31634,721.20,Not Applicable,
Department for Business Energy and Industrial Strategy,Intellectual Property Office,13/12/2017,Accommodation,People Places & Services Direc,Healthy Workstations Ltd,31659,721.20,Not Applicable,
Department for Business Energy and Industrial Strategy,Intellectual Property Office,21/12/2017,Accommodation,People Places & Services Direc,Healthy Workstations Ltd,31683,905.23,Not Applicable,
Department for Business Energy and Industrial Strategy,Intellectual Property Office,18/12/2017,Accommodation,People Places & Services Direc,Corona Energy,12613811,985.97,Not Applicable,
Department for Business Energy and Industrial Strategy,Intellectual Property Office,06/12/2017,Accommodation,People Places & Services Direc,Senator International Ltd,S01421393,1113.84,Not Applicable,
Department for Business Energy and Industrial Strategy,Intellectual Property Office,11/12/2017,Accommodation,People Places & Services Direc,Jaguar Building Services Ltd,76132,1267.19,Not Applicable,
Department for Business Energy and Industrial Strategy,Intellectual Property Office,13/12/2017,Accommodation,People Places & Services Direc,SIG TRADING LTD,7033-60034868,1336.39,Not Applicable,
Department for Business Energy and Industrial Strategy,Intellectual Property Office,04/12/2017,Accommodation,People Places & Services Direc,Pro Investments Limited,110174,1412.35,Not Applicable,
Department for Business Energy and Industrial Strategy,Intellectual Property Office,11/12/2017,Accommodation,People Places & Services Direc,EDF ENERGY,3576850,1484.28,Not Applicable,
Department for Business Energy and Industrial Strategy,Intellectual Property Office,21/12/2017,Accommodation,People Places & Services Direc,UK Shared Business Services Ltd,SBS-15386,2315.90,Not Applicable,
Department for Business Energy and Industrial Strategy,Intellectual Property Office,19/12/2017,Accommodation,People Places & Services Direc,Accelerate Cleaning Solutions Ltd,4502,2408.95,Not Applicable,
Department for Business Energy and Industrial Strategy,Intellectual Property Office,13/12/2017,Accommodation,People Places & Services Direc,Accelerate Cleaning Solutions Ltd,4641,2408.95,Not Applicable,
Department for Business Energy and Industrial Strategy,Intellectual Property Office,18/12/2017,Accommodation,People Places & Services Direc,Corona Energy,12613794,2539.31,Not Applicable,
Department for Business Energy and Industrial Strategy,Intellectual Property Office,06/12/2017,Accommodation,People Places & Services Direc,Senator International Ltd,S01421394,6273.60,Not Applicable,
Department for Business Energy and Industrial Strategy,Intellectual Property Office,07/12/2017,Accommodation,People Places & Services Direc,Department For Business Innovation & Ski,61510014066,7410.00,Not Applicable,
Department for Business Energy and Industrial Strategy,Intellectual Property Office,19/12/2017,Accommodation,People Places & Services Direc,Department For Business Innovation & Ski,6.1511E+11,7413.00,Not Applicable,
Department for Business Energy and Industrial Strategy,Intellectual Property Office,21/12/2017,Accommodation,People Places & Services Direc,Total Security Protection Ltd,202554,9004.80,Not Applicable,
Department for Business Energy and Industrial Strategy,Intellectual Property Office,07/12/2017,Accommodation,People Places & Services Direc,Department For Business Innovation & Ski,61510014066,7604.99,Not Applicable,
Department for Business Energy and Industrial Strategy,Intellectual Property Office,19/12/2017,Accommodation,People Places & Services Direc,Department For Business Innovation & Ski,6.1511E+11,7604.99,Not Applicable,
Department for Business Energy and Industrial Strategy,Intellectual Property Office,04/12/2017,Accommodation,People Places & Services Direc,Newport Wafer Fab Limited,NWL0009,11500.00,Not Applicable,
Department for Business Energy and Industrial Strategy,Intellectual Property Office,18/12/2017,Accommodation,People Places & Services Direc,Newport Wafer Fab Limited,NWL0015,11500.00,Not Applicable,
Department for Business Energy and Industrial Strategy,Intellectual Property Office,07/12/2017,Accommodation,People Places & Services Direc,Department For Business Innovation & Ski,61510014066,9871.68,Not Applicable,
Department for Business Energy and Industrial Strategy,Intellectual Property Office,19/12/2017,Accommodation,People Places & Services Direc,Department For Business Innovation & Ski,6.1511E+11,9871.68,Not Applicable,
Department for Business Energy and Industrial Strategy,Intellectual Property Office,11/12/2017,Accommodation,People Places & Services Direc,Department For Business Innovation & Ski,6.1511E+11,11593.85,Not Applicable,
Department for Business Energy and Industrial Strategy,Intellectual Property Office,12/12/2017,Accommodation,People Places & Services Direc,Department For Business Innovation & Ski,6.1511E+11,11593.85,Not Applicable,
Department for Business Energy and Industrial Strategy,Intellectual Property Office,12/12/2017,Accommodation,People Places & Services Direc,Department For Business Innovation & Ski,6.1511E+11,11593.85,Not Applicable,
Department for Business Energy and Industrial Strategy,Intellectual Property Office,12/12/2017,Accommodation,People Places & Services Direc,Department For Business Innovation & Ski,6.1511E+11,11593.85,Not Applicable,
Department for Business Energy and Industrial Strategy,Intellectual Property Office,12/12/2017,Accommodation,People Places & Services Direc,Department For Business Innovation & Ski,6.1511E+11,11593.85,Not Applicable,
Department for Business Energy and Industrial Strategy,Intellectual Property Office,12/12/2017,Accommodation,People Places & Services Direc,Department For Business Innovation & Ski,6.1511E+11,11593.85,Not Applicable,
Department for Business Energy and Industrial Strategy,Intellectual Property Office,12/12/2017,Accommodation,People Places & Services Direc,Department For Business Innovation & Ski,6.1511E+11,11593.85,Not Applicable,
Department for Business Energy and Industrial Strategy,Intellectual Property Office,13/12/2017,Accommodation,People Places & Services Direc,Department For Business Innovation & Ski,6.1511E+11,11593.85,Not Applicable,
Department for Business Energy and Industrial Strategy,Intellectual Property Office,19/12/2017,Accommodation,People Places & Services Direc,Department For Business Innovation & Ski,6.1511E+11,11593.85,Not Applicable,
Department for Business Energy and Industrial Strategy,Intellectual Property Office,04/12/2017,Accommodation,People Places & Services Direc,Pro Investments Limited,110173,21000.00,Not Applicable,
Department for Business Energy and Industrial Strategy,Intellectual Property Office,11/12/2017,Accommodation,People Places & Services Direc,EDF ENERGY,3606810,32677.84,Not Applicable,
Department for Business Energy and Industrial Strategy,Intellectual Property Office,12/12/2017,Accommodation,People Places & Services Direc,Department For Business Innovation & Ski,6.1511E+11,33662.60,Not Applicable,
Department for Business Energy and Industrial Strategy,Intellectual Property Office,19/12/2017,Accommodation,People Places & Services Direc,Department For Business Innovation & Ski,6.1511E+11,49140.44,Not Applicable,
Department for Business Energy and Industrial Strategy,Intellectual Property Office,07/12/2017,Accommodation,People Places & Services Direc,Department For Business Innovation & Ski,61510014066,49143.44,Not Applicable,
Department for Business Energy and Industrial Strategy,Intellectual Property Office,19/12/2017,Accommodation,People Places & Services Direc,Department For Business Innovation & Ski,6.1511E+11,86118.32,Not Applicable,
Department for Business Energy and Industrial Strategy,Intellectual Property Office,12/12/2017,Accommodation,People Places & Services Direc,Department For Business Innovation & Ski,6.1511E+11,202577.00,Not Applicable,
Department for Business Energy and Industrial Strategy,Intellectual Property Office,20/12/2017,Accommodation,People Places & Services Direc,London Borough of Tower Hamlets,65958270-APR2017,399200.00,Not Applicable,
Department for Business Energy and Industrial Strategy,Intellectual Property Office,08/12/2017,Incorporations - Standard,Patent Directorate,Dawn Michelle Wood,1604043/1606001,630.00,Not Applicable,
Department for Business Energy and Industrial Strategy,Intellectual Property Office,01/12/2017,Information Technology,IT Directorate,Capita Business Services  Ltd,LO10233476,991.78,Not Applicable,
Department for Business Energy and Industrial Strategy,Intellectual Property Office,05/12/2017,Information Technology,IT Directorate,Trustmarque Solutions Ltd,2265322,1070.48,Not Applicable,
Department for Business Energy and Industrial Strategy,Intellectual Property Office,15/12/2017,Information Technology,IT Directorate,Capita Business Services  Ltd,LO10235803,1243.20,Not Applicable,
Department for Business Energy and Industrial Strategy,Intellectual Property Office,11/12/2017,Information Technology,IT Directorate,Capita Business Services  Ltd,LO10233878,1475.94,Not Applicable,
Department for Business Energy and Industrial Strategy,Intellectual Property Office,04/12/2017,Information Technology,IT Directorate,JetBrains,INVCZ1051997,1464.71,Not Applicable,
Department for Business Energy and Industrial Strategy,Intellectual Property Office,18/12/2017,Information Technology,IT Directorate,Bytes Software Services Ltd,499077,1786.63,Not Applicable,
Department for Business Energy and Industrial Strategy,Intellectual Property Office,11/12/2017,Information Technology,IT Directorate,Capita Business Services  Ltd,LO10233878,1810.61,Not Applicable,
Department for Business Energy and Industrial Strategy,Intellectual Property Office,15/12/2017,Information Technology,IT Directorate,Capita Business Services  Ltd,LO10235803,1810.61,Not Applicable,
Department for Business Energy and Industrial Strategy,Intellectual Property Office,11/12/2017,Information Technology,IT Directorate,Capita Business Services  Ltd,LO10233878,1974.97,Not Applicable,
Department for Business Energy and Industrial Strategy,Intellectual Property Office,15/12/2017,Information Technology,IT Directorate,Capita Business Services  Ltd,LO10235803,2209.28,Not Applicable,
Department for Business Energy and Industrial Strategy,Intellectual Property Office,11/12/2017,Information Technology,IT Directorate,Capita Business Services  Ltd,LO10233878,2242.76,Not Applicable,
Department for Business Energy and Industrial Strategy,Intellectual Property Office,01/12/2017,Information Technology,IT Directorate,Capita Business Services  Ltd,LO10233476,2265.32,Not Applicable,
Department for Business Energy and Industrial Strategy,Intellectual Property Office,22/12/2017,Information Technology,IT Directorate,Capita Business Services  Ltd,LO10236969,2387.20,Not Applicable,
Department for Business Energy and Industrial Strategy,Intellectual Property Office,22/12/2017,Information Technology,IT Directorate,Capita Business Services  Ltd,LO10236969,2516.27,Not Applicable,
Department for Business Energy and Industrial Strategy,Intellectual Property Office,01/12/2017,Information Technology,IT Directorate,Capita Business Services  Ltd,LO10233476,2564.54,Not Applicable,
Department for Business Energy and Industrial Strategy,Intellectual Property Office,15/12/2017,Information Technology,IT Directorate,Capita Business Services  Ltd,LO10235803,2564.54,Not Applicable,
Department for Business Energy and Industrial Strategy,Intellectual Property Office,01/12/2017,Information Technology,IT Directorate,Capita Business Services  Ltd,LO10233476,2569.87,Not Applicable,
Department for Business Energy and Industrial Strategy,Intellectual Property Office,15/12/2017,Information Technology,IT Directorate,Capita Business Services  Ltd,LO10235803,2569.87,Not Applicable,
Department for Business Energy and Industrial Strategy,Intellectual Property Office,22/12/2017,Information Technology,IT Directorate,Capita Business Services  Ltd,LO10236969,2569.87,Not Applicable,
Department for Business Energy and Industrial Strategy,Intellectual Property Office,01/12/2017,Information Technology,IT Directorate,Capita Business Services  Ltd,LO10233476,2962.81,Not Applicable,
Department for Business Energy and Industrial Strategy,Intellectual Property Office,22/12/2017,Information Technology,IT Directorate,Capita Business Services  Ltd,LO10236969,2965.14,Not Applicable,
Department for Business Energy and Industrial Strategy,Intellectual Property Office,15/12/2017,Information Technology,IT Directorate,Capita Business Services  Ltd,LO10235803,3037.87,Not Applicable,
Department for Business Energy and Industrial Strategy,Intellectual Property Office,15/12/2017,Information Technology,IT Directorate,Capita Business Services  Ltd,LO10235803,3062.27,Not Applicable,
Department for Business Energy and Industrial Strategy,Intellectual Property Office,01/12/2017,Information Technology,IT Directorate,Capita Business Services  Ltd,LO10233476,3145.44,Not Applicable,
Department for Business Energy and Industrial Strategy,Intellectual Property Office,15/12/2017,Information Technology,IT Directorate,Capita Business Services  Ltd,LO10235803,3145.44,Not Applicable,
Department for Business Energy and Industrial Strategy,Intellectual Property Office,15/12/2017,Information Technology,IT Directorate,Capita Business Services  Ltd,LO10235803,3145.44,Not Applicable,
Department for Business Energy and Industrial Strategy,Intellectual Property Office,01/12/2017,Information Technology,IT Directorate,LA International Computer Consultants Lt,LA465775,3146.88,Not Applicable,
Department for Business Energy and Industrial Strategy,Intellectual Property Office,15/12/2017,Information Technology,IT Directorate,LA International Computer Consultants Lt,LA468352,3502.01,Not Applicable,
Department for Business Energy and Industrial Strategy,Intellectual Property Office,01/12/2017,Information Technology,IT Directorate,Capita Business Services  Ltd,LO10233476,3504.94,Not Applicable,
Department for Business Energy and Industrial Strategy,Intellectual Property Office,15/12/2017,Information Technology,IT Directorate,Capita Business Services  Ltd,LO10235803,3504.94,Not Applicable,
Department for Business Energy and Industrial Strategy,Intellectual Property Office,11/12/2017,Information Technology,IT Directorate,Centerprise International,90199003,3912.00,Not Applicable,
Department for Business Energy and Industrial Strategy,Intellectual Property Office,11/12/2017,Information Technology,IT Directorate,Capita Business Services  Ltd,LO10233878,3952.93,Not Applicable,
Department for Business Energy and Industrial Strategy,Intellectual Property Office,15/12/2017,Information Technology,IT Directorate,Capita Business Services  Ltd,LO10235803,3952.93,Not Applicable,
Department for Business Energy and Industrial Strategy,Intellectual Property Office,01/12/2017,Information Technology,IT Directorate,Capita Business Services  Ltd,LO10233476,4149.75,Not Applicable,
Department for Business Energy and Industrial Strategy,Intellectual Property Office,12/12/2017,Information Technology,IT Directorate,MCSA GROUP LTD,S-INV-107355,4290.86,Not Applicable,
Department for Business Energy and Industrial Strategy,Intellectual Property Office,22/12/2017,Information Technology,IT Directorate,Capita Business Services  Ltd,LO10236969,5005.42,Not Applicable,
Department for Business Energy and Industrial Strategy,Intellectual Property Office,15/12/2017,Information Technology,IT Directorate,Capita Business Services  Ltd,LO10235803,5279.19,Not Applicable,
Department for Business Energy and Industrial Strategy,Intellectual Property Office,29/12/2017,Information Technology,IT Directorate,Verisign,520005799,4499.60,Not Applicable,
Department for Business Energy and Industrial Strategy,Intellectual Property Office,29/12/2017,Information Technology,IT Directorate,BrowserStack Inc,36021,4551.54,Not Applicable,
Department for Business Energy and Industrial Strategy,Intellectual Property Office,15/12/2017,Information Technology,IT Directorate,Capita Business Services  Ltd,LO10235803,5519.16,Not Applicable,
Department for Business Energy and Industrial Strategy,Intellectual Property Office,15/12/2017,Information Technology,IT Directorate,LA International Computer Consultants Lt,LA468353,6215.09,Not Applicable,
Department for Business Energy and Industrial Strategy,Intellectual Property Office,01/12/2017,Information Technology,IT Directorate,Capita Business Services  Ltd,LO10233476,6435.85,Not Applicable,
Department for Business Energy and Industrial Strategy,Intellectual Property Office,21/12/2017,Information Technology,IT Directorate,SOFTWARE BOX LTD,INV93717,7229.52,Not Applicable,
Department for Business Energy and Industrial Strategy,Intellectual Property Office,07/12/2017,Information Technology,IT Directorate,True North Human Capital Limited,2883,7500.00,Not Applicable,
Department for Business Energy and Industrial Strategy,Intellectual Property Office,05/12/2017,Information Technology,IT Directorate,Trustmarque Solutions Ltd,2263511,9259.36,Not Applicable,
Department for Business Energy and Industrial Strategy,Intellectual Property Office,11/12/2017,Information Technology,IT Directorate,Perago-Wales,PM004,10500.00,Not Applicable,
Department for Business Energy and Industrial Strategy,Intellectual Property Office,04/12/2017,Information Technology,IT Directorate,Responsiv Solutions Limited,RSL0404,10635.59,Not Applicable,
Department for Business Energy and Industrial Strategy,Intellectual Property Office,22/12/2017,Information Technology,IT Directorate,Capita Business Services  Ltd,LO10236969,10978.15,Not Applicable,
Department for Business Energy and Industrial Strategy,Intellectual Property Office,11/12/2017,Information Technology,IT Directorate,Trustmarque Solutions Ltd,2266268,12354.00,Not Applicable,
Department for Business Energy and Industrial Strategy,Intellectual Property Office,06/12/2017,Information Technology,IT Directorate,Equal Experts UK Limited,INV-3738,15000.00,Not Applicable,
Department for Business Energy and Industrial Strategy,Intellectual Property Office,22/12/2017,Information Technology,IT Directorate,Capita Business Services  Ltd,LO10236969,17468.31,Not Applicable,
Department for Business Energy and Industrial Strategy,Intellectual Property Office,11/12/2017,Information Technology,IT Directorate,Capita Business Services  Ltd,LO10233878,19167.01,Not Applicable,
Department for Business Energy and Industrial Strategy,Intellectual Property Office,08/12/2017,Information Technology,IT Directorate,Open Text AG,9000267880,42320.47,Not Applicable,
Department for Business Energy and Industrial Strategy,Intellectual Property Office,19/12/2017,Information Technology,IT Directorate,Trustmarque Solutions Ltd,2266098,56904.00,Not Applicable,
Department for Business Energy and Industrial Strategy,Intellectual Property Office,15/12/2017,Information Technology,IT Directorate,Comparex Ltd,170007866VRUKA,74473.74,Not Applicable,
Department for Business Energy and Industrial Strategy,Intellectual Property Office,12/12/2017,Information Technology,Patent Directorate,Clarivate Analytics (UK) Limited,837315049,5183.16,Not Applicable,
Department for Business Energy and Industrial Strategy,Intellectual Property Office,06/12/2017,Information Technology,Patent Directorate,STN International,9340319658,13692.76,Not Applicable,
Department for Business Energy and Industrial Strategy,Intellectual Property Office,21/12/2017,Information Technology,Patent Directorate,IET Services Ltd,IEQ01496424,22761.60,Not Applicable,
Department for Business Energy and Industrial Strategy,Intellectual Property Office,15/12/2017,Information Technology,Patent Directorate,Beijing Zhong Xian Dian Zi Tech,20171212022,38045.96,Not Applicable,
Department for Business Energy and Industrial Strategy,Intellectual Property Office,22/12/2017,Information Technology,Patent Directorate,European Patent Office,40274802,131280.25,Not Applicable,
Department for Business Energy and Industrial Strategy,Intellectual Property Office,21/12/2017,Information Technology,People Places & Services Direc,Insight Direct (UK) Ltd,3630931,14898.00,Not Applicable,
Department for Business Energy and Industrial Strategy,Intellectual Property Office,05/12/2017,Information Technology,Projects,Colt Technology Services,2.0171E+12,600.00,Not Applicable,
Department for Business Energy and Industrial Strategy,Intellectual Property Office,21/12/2017,Information Technology,Projects,Agile Solutions GB Ltd,INV-3497,7560.00,Not Applicable,
Department for Business Energy and Industrial Strategy,Intellectual Property Office,11/12/2017,Information Technology,Projects,SANDHILL CONSULTANTS LTD,IN4059178,9690.00,Not Applicable,
Department for Business Energy and Industrial Strategy,Intellectual Property Office,11/12/2017,Information Technology,Projects,Agile Solutions GB Ltd,INV-3464,9720.00,Not Applicable,
Department for Business Energy and Industrial Strategy,Intellectual Property Office,21/12/2017,Information Technology,Projects,Silver Marlin Associates Ltd,IPO2007,17820.00,Not Applicable,
Department for Business Energy and Industrial Strategy,Intellectual Property Office,21/12/2017,Information Technology,Projects,Silver Marlin Associates Ltd,IPO2008,17820.00,Not Applicable,
Department for Business Energy and Industrial Strategy,Intellectual Property Office,18/12/2017,Information Technology,Projects,Pirean Ltd,2968,21600.00,Not Applicable,
Department for Business Energy and Industrial Strategy,Intellectual Property Office,07/12/2017,Information Technology,Projects,Agile Solutions GB Ltd,INV-3465,24150.00,Not Applicable,
Department for Business Energy and Industrial Strategy,Intellectual Property Office,21/12/2017,Information Technology,Projects,Agile Solutions GB Ltd,INV-3498,27780.00,Not Applicable,
Department for Business Energy and Industrial Strategy,Intellectual Property Office,13/12/2017,Information Technology,Projects,Pirean Ltd,2965,40974.00,Not Applicable,
Department for Business Energy and Industrial Strategy,Intellectual Property Office,19/12/2017,Legal & Hearings,Finance Directorate,Department For Business Innovation & Ski,6.1511E+11,166250.00,Not Applicable,
Department for Business Energy and Industrial Strategy,Intellectual Property Office,12/12/2017,Legal & Hearings,Patent Directorate,Government Legal Department,447900,111.60,Not Applicable,
Department for Business Energy and Industrial Strategy,Intellectual Property Office,12/12/2017,Legal & Hearings,Patent Directorate,Government Legal Department,447827,145.08,Not Applicable,
Department for Business Energy and Industrial Strategy,Intellectual Property Office,11/12/2017,Legal & Hearings,People Places & Services Direc,Capital Law LLP,20041524,549.00,Not Applicable,
Department for Business Energy and Industrial Strategy,Intellectual Property Office,12/12/2017,Legal & Hearings,Trade Mark Directorate,Government Legal Department,448058,3900.00,Not Applicable,
Department for Business Energy and Industrial Strategy,Intellectual Property Office,12/12/2017,Legal & Hearings,Trade Mark Directorate,Government Legal Department,447827,4840.87,Not Applicable,
Department for Business Energy and Industrial Strategy,Intellectual Property Office,12/12/2017,Legal & Hearings,Trade Mark Directorate,Government Legal Department,447900,14365.60,Not Applicable,
Department for Business Energy and Industrial Strategy,Intellectual Property Office,13/12/2017,Marketing & Publicity,Copyright & Enforcement Direct,DAN ANTHONY PRESENTATIONS LTD,178,1000.00,Not Applicable,
Department for Business Energy and Industrial Strategy,Intellectual Property Office,13/12/2017,Marketing & Publicity,Innovation Directorate,Redbrick Enterprises Ltd,INV-0317,600.00,Not Applicable,
Department for Business Energy and Industrial Strategy,Intellectual Property Office,21/12/2017,Marketing & Publicity,Innovation Directorate,Aardman Animations Ltd,34932,624.00,Not Applicable,
Department for Business Energy and Industrial Strategy,Intellectual Property Office,15/12/2017,Marketing & Publicity,Innovation Directorate,Liverpool BA,LBA-3612,696.00,Not Applicable,
Department for Business Energy and Industrial Strategy,Intellectual Property Office,20/12/2017,Marketing & Publicity,Innovation Directorate,Aardman Animations Ltd,34944,820.80,Not Applicable,
Department for Business Energy and Industrial Strategy,Intellectual Property Office,12/12/2017,Marketing & Publicity,Innovation Directorate,Ascential Events Limited,EV-SIN094731,2091.36,Not Applicable,
Department for Business Energy and Industrial Strategy,Intellectual Property Office,11/12/2017,Marketing & Publicity,Innovation Directorate,Bolt Removals Ltd,INV-001182,2154.00,Not Applicable,
Department for Business Energy and Industrial Strategy,Intellectual Property Office,05/12/2017,Marketing & Publicity,Innovation Directorate,New Start Exhibitions Limited,SBEC18125,2400.00,Not Applicable,
Department for Business Energy and Industrial Strategy,Intellectual Property Office,12/12/2017,Marketing & Publicity,Innovation Directorate,GREAT BRITISH EXPOS,6051,4192.80,Not Applicable,
Department for Business Energy and Industrial Strategy,Intellectual Property Office,19/12/2017,Miscellaneous Expenses General,Copyright & Enforcement Direct,SMi Group Ltd,287917,1078.80,Not Applicable,
Department for Business Energy and Industrial Strategy,Intellectual Property Office,08/12/2017,Miscellaneous Expenses General,Innovation Directorate,Veezu Ltd T/A Dragon Taxis (Newport),4444,251.88,Not Applicable,
Department for Business Energy and Industrial Strategy,Intellectual Property Office,15/12/2017,Miscellaneous Expenses General,Innovation Directorate,CPD Certification Service Ltd,4033,2574.00,Not Applicable,
Department for Business Energy and Industrial Strategy,Intellectual Property Office,11/12/2017,Miscellaneous Expenses General,Innovation Directorate,Communicate Research Ltd,I-14869,4581.00,Not Applicable,
Department for Business Energy and Industrial Strategy,Intellectual Property Office,07/12/2017,Miscellaneous Expenses General,IT Directorate,MiTech Consultants,MI-204974-11,1572.00,Not Applicable,
Department for Business Energy and Industrial Strategy,Intellectual Property Office,04/12/2017,Miscellaneous Expenses General,IT Directorate,Responsiv Solutions Limited,RSL0405,4619.23,Not Applicable,
Department for Business Energy and Industrial Strategy,Intellectual Property Office,11/12/2017,Miscellaneous Expenses General,IT Directorate,SANDHILL CONSULTANTS LTD,IN4059180,9690.00,Not Applicable,
Department for Business Energy and Industrial Strategy,Intellectual Property Office,11/12/2017,Miscellaneous Expenses General,IT Directorate,Changility Ltd,CH170009,8800.00,Not Applicable,
Department for Business Energy and Industrial Strategy,Intellectual Property Office,08/12/2017,Miscellaneous Expenses General,IT Directorate,Responsiv Solutions Limited,RSL0412,13642.62,Not Applicable,
Department for Business Energy and Industrial Strategy,Intellectual Property Office,11/12/2017,Miscellaneous Expenses General,IT Directorate,Responsiv Solutions Limited,RSL0395,13829.99,Not Applicable,
Department for Business Energy and Industrial Strategy,Intellectual Property Office,13/12/2017,Miscellaneous Expenses General,IT Directorate,Responsiv Solutions Limited,RSL0413,25212.80,Not Applicable,
Department for Business Energy and Industrial Strategy,Intellectual Property Office,15/12/2017,Miscellaneous Expenses General,IT Directorate,Acuma Solutions Limited,SIN017566,38160.00,Not Applicable,
Department for Business Energy and Industrial Strategy,Intellectual Property Office,07/12/2017,Miscellaneous Expenses General,People Places & Services Direc,RM Gilbert,RMG070817,650.15,Not Applicable,
Department for Business Energy and Industrial Strategy,Intellectual Property Office,04/12/2017,Miscellaneous Expenses General,People Places & Services Direc,Zenith,52337,1033.20,Not Applicable,
Department for Business Energy and Industrial Strategy,Intellectual Property Office,08/12/2017,Miscellaneous Expenses General,People Places & Services Direc,Capital Law LLP,20041410,1767.60,Not Applicable,
Department for Business Energy and Industrial Strategy,Intellectual Property Office,04/12/2017,Miscellaneous Expenses General,People Places & Services Direc,Lex Autolease Limited,TSER444509,1828.25,Not Applicable,
Department for Business Energy and Industrial Strategy,Intellectual Property Office,28/12/2017,Miscellaneous Expenses General,People Places & Services Direc,Creative Confidence Consulting Ltd,INV-0010,1545.00,Not Applicable,
Department for Business Energy and Industrial Strategy,Intellectual Property Office,06/12/2017,Miscellaneous Expenses General,People Places & Services Direc,Capital Law LLP,20041447,4728.00,Not Applicable,
Department for Business Energy and Industrial Strategy,Intellectual Property Office,21/12/2017,Miscellaneous Expenses General,People Places & Services Direc,CHWARAE TEG,1737,7800.00,Not Applicable,
Department for Business Energy and Industrial Strategy,Intellectual Property Office,28/12/2017,Office Machinery,People Places & Services Direc,Xerox (UK) Ltd,1607584413,599.98,Not Applicable,
Department for Business Energy and Industrial Strategy,Intellectual Property Office,28/12/2017,Office Machinery,People Places & Services Direc,Xerox (UK) Ltd,1607584414,599.98,Not Applicable,
Department for Business Energy and Industrial Strategy,Intellectual Property Office,28/12/2017,Office Machinery,People Places & Services Direc,Xerox (UK) Ltd,1607584416,1027.19,Not Applicable,
Department for Business Energy and Industrial Strategy,Intellectual Property Office,28/12/2017,Office Machinery,People Places & Services Direc,Xerox (UK) Ltd,1607584417,1027.19,Not Applicable,
Department for Business Energy and Industrial Strategy,Intellectual Property Office,05/12/2017,Office Machinery,People Places & Services Direc,Midshire Business Systems (Northern) Ltd,347491,1604.58,Not Applicable,
Department for Business Energy and Industrial Strategy,Intellectual Property Office,14/12/2017,Office Machinery,People Places & Services Direc,Konica Minolta Business Solutions (UK),1134676197,9866.38,Not Applicable,
Department for Business Energy and Industrial Strategy,Intellectual Property Office,15/12/2017,Office Supplies,Finance Directorate,South East Drawing Office Ltd,13664,815.40,Not Applicable,
Department for Business Energy and Industrial Strategy,Intellectual Property Office,06/12/2017,Office Supplies,Finance Directorate,Banner Group Limited,1138640,1278.70,Not Applicable,
Department for Business Energy and Industrial Strategy,Intellectual Property Office,11/12/2017,Office Supplies,IT Directorate,Insight Direct (UK) Ltd,3656633,1107.60,Not Applicable,
Department for Business Energy and Industrial Strategy,Intellectual Property Office,12/12/2017,Office Supplies,IT Directorate,Insight Direct (UK) Ltd,3672195,2726.40,Not Applicable,
Department for Business Energy and Industrial Strategy,Intellectual Property Office,07/12/2017,Office Supplies,Patent Directorate,British Library,139793668,965.76,Not Applicable,
Department for Business Energy and Industrial Strategy,Intellectual Property Office,13/12/2017,Office Supplies,Patent Directorate,Thomson Reuters,802125129,805.00,Not Applicable,
Department for Business Energy and Industrial Strategy,Intellectual Property Office,07/12/2017,Office Supplies,People Places & Services Direc,Antalis,7356205,722.02,Not Applicable,
Department for Business Energy and Industrial Strategy,Intellectual Property Office,13/12/2017,Office Supplies,People Places & Services Direc,Antalis,7371517,722.02,Not Applicable,
Department for Business Energy and Industrial Strategy,Intellectual Property Office,22/12/2017,Office Supplies,People Places & Services Direc,Antalis,7396411,722.02,Not Applicable,
Department for Business Energy and Industrial Strategy,Intellectual Property Office,19/12/2017,Office Supplies,People Places & Services Direc,Blake Envelopes,SI0000540509,1057.20,Not Applicable,
Department for Business Energy and Industrial Strategy,Intellectual Property Office,11/12/2017,Office Supplies,People Places & Services Direc,Blake Envelopes,SI0000537993,1356.00,Not Applicable,
Department for Business Energy and Industrial Strategy,Intellectual Property Office,05/12/2017,Office Supplies,People Places & Services Direc,Antalis,7347555,2383.19,Not Applicable,
Department for Business Energy and Industrial Strategy,Intellectual Property Office,07/12/2017,Office Supplies,Trade Mark Directorate,Thomson Reuters,9000873427,1849.00,Not Applicable,
Department for Business Energy and Industrial Strategy,Intellectual Property Office,22/12/2017,Pay Costs,Patent Directorate,Brook Street (UK) Ltd,30788279,105.98,Not Applicable,
Department for Business Energy and Industrial Strategy,Intellectual Property Office,13/12/2017,Pay Costs,Patent Directorate,Acorn Recruitment Ltd,860403,626.48,Not Applicable,
Department for Business Energy and Industrial Strategy,Intellectual Property Office,05/12/2017,Pay Costs,Patent Directorate,Acorn Recruitment Ltd,859694,634.96,Not Applicable,
Department for Business Energy and Industrial Strategy,Intellectual Property Office,05/12/2017,Pay Costs,Patent Directorate,Acorn Recruitment Ltd,859698,634.96,Not Applicable,
Department for Business Energy and Industrial Strategy,Intellectual Property Office,13/12/2017,Pay Costs,Patent Directorate,Acorn Recruitment Ltd,860407,634.96,Not Applicable,
Department for Business Energy and Industrial Strategy,Intellectual Property Office,21/12/2017,Pay Costs,Patent Directorate,Acorn Recruitment Ltd,861113,660.35,Not Applicable,
Department for Business Energy and Industrial Strategy,Intellectual Property Office,11/12/2017,Pay Costs,Patent Directorate,Brook Street (UK) Ltd,30763464,1484.76,Not Applicable,
Department for Business Energy and Industrial Strategy,Intellectual Property Office,18/12/2017,Pay Costs,Patent Directorate,Brook Street (UK) Ltd,30775928,1802.78,Not Applicable,
Department for Business Energy and Industrial Strategy,Intellectual Property Office,11/12/2017,Pay Costs,Patent Directorate,Brook Street (UK) Ltd,30763464,2575.49,Not Applicable,
Department for Business Energy and Industrial Strategy,Intellectual Property Office,22/12/2017,Pay Costs,Patent Directorate,Brook Street (UK) Ltd,30788279,2969.04,Not Applicable,
Department for Business Energy and Industrial Strategy,Intellectual Property Office,18/12/2017,Pay Costs,Patent Directorate,Brook Street (UK) Ltd,30775928,4993.47,Not Applicable,
Department for Business Energy and Industrial Strategy,Intellectual Property Office,18/12/2017,Pay Costs,Patent Directorate,Brook Street (UK) Ltd,30775928,9052.14,Not Applicable,
Department for Business Energy and Industrial Strategy,Intellectual Property Office,11/12/2017,Pay Costs,Patent Directorate,Brook Street (UK) Ltd,30763464,11314.45,Not Applicable,
Department for Business Energy and Industrial Strategy,Intellectual Property Office,22/12/2017,Pay Costs,Patent Directorate,Brook Street (UK) Ltd,30788279,12449.95,Not Applicable,
Department for Business Energy and Industrial Strategy,Intellectual Property Office,11/12/2017,Pay Costs,People Places & Services Direc,Brook Street (UK) Ltd,30763464,402.90,Not Applicable,
Department for Business Energy and Industrial Strategy,Intellectual Property Office,22/12/2017,Pay Costs,People Places & Services Direc,Brook Street (UK) Ltd,30788279,422.47,Not Applicable,
Department for Business Energy and Industrial Strategy,Intellectual Property Office,13/12/2017,Pay Costs,People Places & Services Direc,Acorn Recruitment Ltd,860405,503.69,Not Applicable,
Department for Business Energy and Industrial Strategy,Intellectual Property Office,13/12/2017,Pay Costs,People Places & Services Direc,Acorn Recruitment Ltd,860404,506.62,Not Applicable,
Department for Business Energy and Industrial Strategy,Intellectual Property Office,13/12/2017,Pay Costs,People Places & Services Direc,Acorn Recruitment Ltd,860408,507.00,Not Applicable,
Department for Business Energy and Industrial Strategy,Intellectual Property Office,05/12/2017,Pay Costs,People Places & Services Direc,Acorn Recruitment Ltd,859699,508.33,Not Applicable,
Department for Business Energy and Industrial Strategy,Intellectual Property Office,11/12/2017,Pay Costs,People Places & Services Direc,Brook Street (UK) Ltd,30763464,539.02,Not Applicable,
Department for Business Energy and Industrial Strategy,Intellectual Property Office,18/12/2017,Pay Costs,People Places & Services Direc,Brook Street (UK) Ltd,30775928,546.30,Not Applicable,
Department for Business Energy and Industrial Strategy,Intellectual Property Office,05/12/2017,Pay Costs,People Places & Services Direc,Acorn Recruitment Ltd,859695,614.23,Not Applicable,
Department for Business Energy and Industrial Strategy,Intellectual Property Office,19/12/2017,Pay Costs,People Places & Services Direc,Acorn Recruitment Ltd,861109,626.48,Not Applicable,
Department for Business Energy and Industrial Strategy,Intellectual Property Office,21/12/2017,Pay Costs,People Places & Services Direc,Acorn Recruitment Ltd,861114,628.19,Not Applicable,
Department for Business Energy and Industrial Strategy,Intellectual Property Office,18/12/2017,Pay Costs,People Places & Services Direc,Brook Street (UK) Ltd,30775928,632.54,Not Applicable,
Department for Business Energy and Industrial Strategy,Intellectual Property Office,22/12/2017,Pay Costs,People Places & Services Direc,Brook Street (UK) Ltd,30788279,652.69,Not Applicable,
Department for Business Energy and Industrial Strategy,Intellectual Property Office,05/12/2017,Pay Costs,People Places & Services Direc,Acorn Recruitment Ltd,859697,664.52,Not Applicable,
Department for Business Energy and Industrial Strategy,Intellectual Property Office,13/12/2017,Pay Costs,People Places & Services Direc,Acorn Recruitment Ltd,860406,670.20,Not Applicable,
Department for Business Energy and Industrial Strategy,Intellectual Property Office,01/12/2017,Pay Costs,People Places & Services Direc,C2W Support,33866,999.00,Not Applicable,
Department for Business Energy and Industrial Strategy,Intellectual Property Office,01/12/2017,Pay Costs,People Places & Services Direc,C2W Support,33757,1000.00,Not Applicable,
Department for Business Energy and Industrial Strategy,Intellectual Property Office,01/12/2017,Pay Costs,People Places & Services Direc,C2W Support,33896,1000.00,Not Applicable,
Department for Business Energy and Industrial Strategy,Intellectual Property Office,05/12/2017,Postage & Delivery Costs,People Places & Services Direc,DHL International (UK) Ltd,BRS0987061,573.88,Not Applicable,
Department for Business Energy and Industrial Strategy,Intellectual Property Office,15/12/2017,Postage & Delivery Costs,People Places & Services Direc,Parcelforce Worldwide,9055694388,1326.64,Not Applicable,
Department for Business Energy and Industrial Strategy,Intellectual Property Office,20/12/2017,Postage & Delivery Costs,People Places & Services Direc,Royal Mail,9055703135,1683.08,Not Applicable,
Department for Business Energy and Industrial Strategy,Intellectual Property Office,04/12/2017,Postage & Delivery Costs,People Places & Services Direc,Royal Mail,9055614607,1754.14,Not Applicable,
Department for Business Energy and Industrial Strategy,Intellectual Property Office,15/12/2017,Postage & Delivery Costs,People Places & Services Direc,DHL International (UK) Ltd,BRS1014148,1728.16,Not Applicable,
Department for Business Energy and Industrial Strategy,Intellectual Property Office,20/12/2017,Postage & Delivery Costs,People Places & Services Direc,DHL International (UK) Ltd,BRS1033488,2187.79,Not Applicable,
Department for Business Energy and Industrial Strategy,Intellectual Property Office,12/12/2017,Postage & Delivery Costs,People Places & Services Direc,CitySprint (UK) Ltd,2383530,7405.31,Not Applicable,
Department for Business Energy and Industrial Strategy,Intellectual Property Office,18/12/2017,Postage & Delivery Costs,People Places & Services Direc,Neopost Finance Ltd,13DEC17-NE900033,10000.00,Not Applicable,
Department for Business Energy and Industrial Strategy,Intellectual Property Office,07/12/2017,Staff Costs,International Policy Directora,Clear Coaching & Consulting Ltd,320-2017-18,5374.90,Not Applicable,
Department for Business Energy and Industrial Strategy,Intellectual Property Office,20/12/2017,Staff Costs,Patent Directorate,The Hub Events,INV-17-3698,624.00,Not Applicable,
Department for Business Energy and Industrial Strategy,Intellectual Property Office,22/12/2017,Staff Costs,Patent Directorate,Involve Me Training and Development Ltd,193,1800.00,Not Applicable,
Department for Business Energy and Industrial Strategy,Intellectual Property Office,15/12/2017,Staff Costs,Patent Directorate,Mpirical Ltd,1253,12990.00,Not Applicable,
Department for Business Energy and Industrial Strategy,Intellectual Property Office,21/12/2017,Staff Costs,Patent Directorate,Korn Ferry Hay Group (CSL),1195020986,15000.00,Not Applicable,
Department for Business Energy and Industrial Strategy,Intellectual Property Office,22/12/2017,Staff Costs,People Places & Services Direc,Involve Me Training and Development Ltd,194,600.00,Not Applicable,
Department for Business Energy and Industrial Strategy,Intellectual Property Office,22/12/2017,Staff Costs,People Places & Services Direc,Involve Me Training and Development Ltd,196,600.00,Not Applicable,
Department for Business Energy and Industrial Strategy,Intellectual Property Office,19/12/2017,Staff Costs,People Places & Services Direc,University of South Wales (Pontypridd),40449,1056.00,Not Applicable,
Department for Business Energy and Industrial Strategy,Intellectual Property Office,06/12/2017,Staff Costs,People Places & Services Direc,Computeraid Ltd,21424,1356.00,Not Applicable,
Department for Business Energy and Industrial Strategy,Intellectual Property Office,22/12/2017,Staff Costs,People Places & Services Direc,Involve Me Training and Development Ltd,191,1200.00,Not Applicable,
Department for Business Energy and Industrial Strategy,Intellectual Property Office,22/12/2017,Staff Costs,People Places & Services Direc,Involve Me Training and Development Ltd,195,1200.00,Not Applicable,
Department for Business Energy and Industrial Strategy,Intellectual Property Office,07/12/2017,Staff Costs,People Places & Services Direc,True Resilience Limited,TR050,2026.56,Not Applicable,
Department for Business Energy and Industrial Strategy,Intellectual Property Office,07/12/2017,Staff Costs,People Places & Services Direc,CIPFA,5238809,6000.00,Not Applicable,
Department for Business Energy and Industrial Strategy,Intellectual Property Office,13/12/2017,Staff Costs,People Places & Services Direc,Sodexo Motivation Solutions UK Ltd,3381742,7792.34,Not Applicable,
Department for Business Energy and Industrial Strategy,Intellectual Property Office,22/12/2017,Staff Costs,People Places & Services Direc,Agil8 Ltd,11842,11700.00,Not Applicable,
Department for Business Energy and Industrial Strategy,Intellectual Property Office,12/12/2017,Staff Costs,People Places & Services Direc,Sodexo Motivation Solutions UK Ltd,3381792,11687.31,Not Applicable,
Department for Business Energy and Industrial Strategy,Intellectual Property Office,19/12/2017,Staff Costs,Trade Mark Directorate,Wales Quality Centre Ltd,11112,2136.00,Not Applicable,
Department for Business Energy and Industrial Strategy,Intellectual Property Office,13/12/2017,Supporting UK Business,Innovation Directorate,SGS United Kingdom Ltd,WWB1115314,1860.00,Not Applicable,
Department for Business Energy and Industrial Strategy,Intellectual Property Office,15/12/2017,Supporting UK Business,Innovation Directorate,Brooke-Jones Ltd,10436,2599.20,Not Applicable,
Department for Business Energy and Industrial Strategy,Intellectual Property Office,28/12/2017,Supporting UK Business,Innovation Directorate,DJ Grigg,ELENTEC LIMITED,2166.67,Not Applicable,
Department for Business Energy and Industrial Strategy,Intellectual Property Office,04/12/2017,Supporting UK Business,Innovation Directorate,Harrison Goddard Foote,461464,2600.00,Not Applicable,
Department for Business Energy and Industrial Strategy,Intellectual Property Office,28/12/2017,Supporting UK Business,Innovation Directorate,Harrison Goddard Foote,464732,2600.00,Not Applicable,
Department for Business Energy and Industrial Strategy,Intellectual Property Office,20/12/2017,Supporting UK Business,Innovation Directorate,IP Pragmatics,2003,2600.00,Not Applicable,
Department for Business Energy and Industrial Strategy,Intellectual Property Office,05/12/2017,Supporting UK Business,Innovation Directorate,Alistair Hindle Associates,171116,2600.00,Not Applicable,
Department for Business Energy and Industrial Strategy,Intellectual Property Office,05/12/2017,Supporting UK Business,Innovation Directorate,Marks & Clerk LLP,7090002,2600.00,Not Applicable,
Department for Business Energy and Industrial Strategy,Intellectual Property Office,28/12/2017,Supporting UK Business,Innovation Directorate,Marks & Clerk LLP,7090812,2600.00,Not Applicable,
Department for Business Energy and Industrial Strategy,Intellectual Property Office,28/12/2017,Supporting UK Business,Innovation Directorate,Saunders & Dolleymore LLP,17-09319,2600.00,Not Applicable,
Department for Business Energy and Industrial Strategy,Intellectual Property Office,08/12/2017,Supporting UK Business,Innovation Directorate,LAWRIE INTELLECTUAL PROPERTY,110793,2600.00,Not Applicable,
Department for Business Energy and Industrial Strategy,Intellectual Property Office,08/12/2017,Supporting UK Business,Innovation Directorate,LAWRIE INTELLECTUAL PROPERTY,110909,2600.00,Not Applicable,
Department for Business Energy and Industrial Strategy,Intellectual Property Office,20/12/2017,Supporting UK Business,Innovation Directorate,LAWRIE INTELLECTUAL PROPERTY,110918,2600.00,Not Applicable,
Department for Business Energy and Industrial Strategy,Intellectual Property Office,21/12/2017,Supporting UK Business,Innovation Directorate,LAWRIE INTELLECTUAL PROPERTY,110927,2600.00,Not Applicable,
Department for Business Energy and Industrial Strategy,Intellectual Property Office,15/12/2017,Supporting UK Business,Innovation Directorate,INNGOT LTD,N1711-9,2600.00,Not Applicable,
Department for Business Energy and Industrial Strategy,Intellectual Property Office,08/12/2017,Supporting UK Business,Innovation Directorate,STEPHENS SCOWN LLP,84730,2600.00,Not Applicable,
Department for Business Energy and Industrial Strategy,Intellectual Property Office,20/12/2017,Supporting UK Business,Innovation Directorate,STEPHENS SCOWN LLP,85734,2600.00,Not Applicable,
Department for Business Energy and Industrial Strategy,Intellectual Property Office,28/12/2017,Supporting UK Business,Innovation Directorate,STEPHENS SCOWN LLP,85807,2600.00,Not Applicable,
Department for Business Energy and Industrial Strategy,Intellectual Property Office,28/12/2017,Supporting UK Business,Innovation Directorate,STEPHENS SCOWN LLP,85826,2600.00,Not Applicable,
Department for Business Energy and Industrial Strategy,Intellectual Property Office,04/12/2017,Supporting UK Business,Innovation Directorate,Lean IP,INV2143,2600.00,Not Applicable,
Department for Business Energy and Industrial Strategy,Intellectual Property Office,21/12/2017,Supporting UK Business,Innovation Directorate,MacRoberts LLP,I-17-8887,2600.00,Not Applicable,
Department for Business Energy and Industrial Strategy,Intellectual Property Office,15/12/2017,Supporting UK Business,Innovation Directorate,MacRoberts LLP,I-17-8888,2600.00,Not Applicable,
Department for Business Energy and Industrial Strategy,Intellectual Property Office,20/12/2017,Supporting UK Business,Innovation Directorate,Appleyard Lees,129651,2600.00,Not Applicable,
Department for Business Energy and Industrial Strategy,Intellectual Property Office,08/12/2017,Supporting UK Business,Innovation Directorate,Ellis IP Limited,3134,2600.00,Not Applicable,
Department for Business Energy and Industrial Strategy,Intellectual Property Office,19/12/2017,Supporting UK Business,Innovation Directorate,Ellis IP Limited,3155,2600.00,Not Applicable,
Department for Business Energy and Industrial Strategy,Intellectual Property Office,15/12/2017,Supporting UK Business,Innovation Directorate,Ouzman IP Limited,333,2600.00,Not Applicable,
Department for Business Energy and Industrial Strategy,Intellectual Property Office,13/12/2017,Supporting UK Business,Innovation Directorate,Culverstons IP,17-12-0003,2600.00,Not Applicable,
Department for Business Energy and Industrial Strategy,Intellectual Property Office,14/12/2017,Supporting UK Business,Innovation Directorate,MSC R&D Ltd,15594,2600.00,Not Applicable,
Department for Business Energy and Industrial Strategy,Intellectual Property Office,28/12/2017,Supporting UK Business,Innovation Directorate,CMS Cameron McKenna Nabarro Olswang LLP,964599,2600.00,Not Applicable,
Department for Business Energy and Industrial Strategy,Intellectual Property Office,22/12/2017,Supporting UK Business,Innovation Directorate,Keltie LLP,123978,2600.00,Not Applicable,
Department for Business Energy and Industrial Strategy,Intellectual Property Office,19/12/2017,Supporting UK Business,Innovation Directorate,Eagle IP International,23,2166.67,Not Applicable,
Department for Business Energy and Industrial Strategy,Intellectual Property Office,20/12/2017,Supporting UK Business,Innovation Directorate,Beresford Crump LLP,507875,2600.00,Not Applicable,
Department for Business Energy and Industrial Strategy,Intellectual Property Office,14/12/2017,Supporting UK Business,Innovation Directorate,Aaron & Partners LLP,167366,2600.00,Not Applicable,
Department for Business Energy and Industrial Strategy,Intellectual Property Office,21/12/2017,Supporting UK Business,Innovation Directorate,Muckle LLP,105913,2600.00,Not Applicable,
Department for Business Energy and Industrial Strategy,Intellectual Property Office,18/12/2017,Supporting UK Business,Innovation Directorate,Intellectual Property Awareness Network,ICW1,5000.00,Not Applicable,
Department for Business Energy and Industrial Strategy,Intellectual Property Office,14/12/2017,Supporting UK Business,International Policy Directora,FOREIGN & COMMONWEALTH OFFICE,1100268,-1648.94,Not Applicable,
Department for Business Energy and Industrial Strategy,Intellectual Property Office,11/12/2017,Supporting UK Business,International Policy Directora,FOREIGN & COMMONWEALTH OFFICE,1100019,6113.99,Not Applicable,
Department for Business Energy and Industrial Strategy,Intellectual Property Office,14/12/2017,Supporting UK Business,International Policy Directora,FOREIGN & COMMONWEALTH OFFICE,1099626,13704.42,Not Applicable,
Department for Business Energy and Industrial Strategy,Intellectual Property Office,14/12/2017,Supporting UK Business,International Policy Directora,FOREIGN & COMMONWEALTH OFFICE,1100192,16030.25,Not Applicable,
Department for Business Energy and Industrial Strategy,Intellectual Property Office,01/12/2017,Supporting UK Business,International Policy Directora,FOREIGN & COMMONWEALTH OFFICE,1099770,26066.22,Not Applicable,
Department for Business Energy and Industrial Strategy,Intellectual Property Office,22/12/2017,Supporting UK Business,International Policy Directora,FOREIGN & COMMONWEALTH OFFICE,1100391,34950.29,Not Applicable,
Department for Business Energy and Industrial Strategy,Intellectual Property Office,06/12/2017,Telecoms,IT Directorate,EE Ltd,C2039643566,-10963.92,Not Applicable,
Department for Business Energy and Industrial Strategy,Intellectual Property Office,22/12/2017,Telecoms,IT Directorate,British  Telecom,26161216Q023CR,-1685.59,Not Applicable,
Department for Business Energy and Industrial Strategy,Intellectual Property Office,14/12/2017,Telecoms,IT Directorate,VIRGIN MEDIA,409092201-08DEC,506.66,Not Applicable,
Department for Business Energy and Industrial Strategy,Intellectual Property Office,06/12/2017,Telecoms,IT Directorate,VIRGIN MEDIA,917218-01DEC,616.44,Not Applicable,
Department for Business Energy and Industrial Strategy,Intellectual Property Office,05/12/2017,Telecoms,IT Directorate,THREE,AKL38013400,771.46,Not Applicable,
Department for Business Energy and Industrial Strategy,Intellectual Property Office,13/12/2017,Telecoms,IT Directorate,Gamma Telecom Ltd,GA1391796,2092.43,Not Applicable,
Department for Business Energy and Industrial Strategy,Intellectual Property Office,04/12/2017,Telecoms,IT Directorate,ZEN INTERNET LIMITED,24160055,2756.88,Not Applicable,
Department for Business Energy and Industrial Strategy,Intellectual Property Office,06/12/2017,Telecoms,IT Directorate,British  Telecom,GP00002104M05,3056.23,Not Applicable,
Department for Business Energy and Industrial Strategy,Intellectual Property Office,14/12/2017,Telecoms,IT Directorate,British  Telecom,GP00002104M052IW,3056.23,Not Applicable,
Department for Business Energy and Industrial Strategy,Intellectual Property Office,11/12/2017,Telecoms,IT Directorate,VODAFONE LIMITED,UK10-122017-6564,3322.08,Not Applicable,
Department for Business Energy and Industrial Strategy,Intellectual Property Office,22/12/2017,Telecoms,IT Directorate,EE Ltd,1268167768,5856.22,Not Applicable,
Department for Business Energy and Industrial Strategy,Intellectual Property Office,22/12/2017,Telecoms,IT Directorate,British  Telecom,VP02239170M19201,7591.58,Not Applicable,
Department for Business Energy and Industrial Strategy,Intellectual Property Office,14/12/2017,Telecoms,IT Directorate,British  Telecom,26161322Q024,9029.38,Not Applicable,
Department for Business Energy and Industrial Strategy,Intellectual Property Office,14/12/2017,Telecoms,IT Directorate,British  Telecom,26161216Q023,10696.37,Not Applicable,
Department for Business Energy and Industrial Strategy,Intellectual Property Office,06/12/2017,Telecoms,IT Directorate,EE Ltd,1265624348,31323.41,Not Applicable,
Department for Business Energy and Industrial Strategy,Intellectual Property Office,08/12/2017,Travel & Subsistence,Copyright & Enforcement Direct,Veezu Ltd T/A Dragon Taxis (Newport),4444,34.20,Not Applicable,
Department for Business Energy and Industrial Strategy,Intellectual Property Office,08/12/2017,Travel & Subsistence,Copyright & Enforcement Direct,Veezu Ltd T/A Dragon Taxis (Newport),4444,72.84,Not Applicable,
Department for Business Energy and Industrial Strategy,Intellectual Property Office,01/12/2017,Travel & Subsistence,Copyright & Enforcement Direct,Neil Collett,OS000000516,627.59,Not Applicable,
Department for Business Energy and Industrial Strategy,Intellectual Property Office,20/12/2017,Travel & Subsistence,Copyright & Enforcement Direct,Huw Watkins,UK000002931,701.93,Not Applicable,
Department for Business Energy and Industrial Strategy,Intellectual Property Office,08/12/2017,Travel & Subsistence,Finance Directorate,Veezu Ltd T/A Dragon Taxis (Newport),4444,7.80,Not Applicable,
Department for Business Energy and Industrial Strategy,Intellectual Property Office,13/12/2017,Travel & Subsistence,Finance Directorate,Jessica Ashfield,OS000000544,1636.19,Not Applicable,
Department for Business Energy and Industrial Strategy,Intellectual Property Office,08/12/2017,Travel & Subsistence,Innovation Directorate,Veezu Ltd T/A Dragon Taxis (Newport),4444,7.80,Not Applicable,
Department for Business Energy and Industrial Strategy,Intellectual Property Office,08/12/2017,Travel & Subsistence,Innovation Directorate,Veezu Ltd T/A Dragon Taxis (Newport),4444,7.80,Not Applicable,
Department for Business Energy and Industrial Strategy,Intellectual Property Office,08/12/2017,Travel & Subsistence,Innovation Directorate,Veezu Ltd T/A Dragon Taxis (Newport),4444,23.40,Not Applicable,
Department for Business Energy and Industrial Strategy,Intellectual Property Office,08/12/2017,Travel & Subsistence,Innovation Directorate,Veezu Ltd T/A Dragon Taxis (Newport),4444,97.68,Not Applicable,
Department for Business Energy and Industrial Strategy,Intellectual Property Office,08/12/2017,Travel & Subsistence,International Policy Directora,Veezu Ltd T/A Dragon Taxis (Newport),4444,117.96,Not Applicable,
Department for Business Energy and Industrial Strategy,Intellectual Property Office,21/12/2017,Travel & Subsistence,International Policy Directora,Michael Sherlock,OS000000561,640.21,Not Applicable,
Department for Business Energy and Industrial Strategy,Intellectual Property Office,05/12/2017,Travel & Subsistence,International Policy Directora,Willa Huang,OS000000512,1282.76,Not Applicable,
Department for Business Energy and Industrial Strategy,Intellectual Property Office,08/12/2017,Travel & Subsistence,IT Directorate,Veezu Ltd T/A Dragon Taxis (Newport),4444,23.40,Not Applicable,
Department for Business Energy and Industrial Strategy,Intellectual Property Office,08/12/2017,Travel & Subsistence,IT Directorate,Veezu Ltd T/A Dragon Taxis (Newport),4444,23.40,Not Applicable,
Department for Business Energy and Industrial Strategy,Intellectual Property Office,28/12/2017,Travel & Subsistence,Patent Directorate,Andrew Bartlett,OS000000504,687.12,Not Applicable,
Department for Business Energy and Industrial Strategy,Intellectual Property Office,08/12/2017,Travel & Subsistence,People Places & Services Direc,Veezu Ltd T/A Dragon Taxis (Newport),4444,7.80,Not Applicable,
Department for Business Energy and Industrial Strategy,Intellectual Property Office,08/12/2017,Travel & Subsistence,People Places & Services Direc,Veezu Ltd T/A Dragon Taxis (Newport),4444,23.40,Not Applicable,
Department for Business Energy and Industrial Strategy,Intellectual Property Office,08/12/2017,Travel & Subsistence,People Places & Services Direc,Veezu Ltd T/A Dragon Taxis (Newport),4444,526.44,Not Applicable,
Department for Business Energy and Industrial Strategy,Intellectual Property Office,08/12/2017,Travel & Subsistence,Projects,Veezu Ltd T/A Dragon Taxis (Newport),4444,39.48,Not Applicable,
Department for Business Energy and Industrial Strategy,Intellectual Property Office,08/12/2017,Travel & Subsistence,Trade Mark Directorate,Veezu Ltd T/A Dragon Taxis (Newport),4444,49.74,Not Applicable,
Department for Business Energy and Industrial Strategy,Intellectual Property Office,08/12/2017,Travel & Subsistence,Trade Mark Directorate,Veezu Ltd T/A Dragon Taxis (Newport),4444,147.66,Not Applicable,
Department for Business Energy and Industrial Strategy,Intellectual Property Office,01/12/2017,Network and infrastructure H/W,IT Directorate,Amazon UK Retail Amazon.C,H57720171205iubwxmoru,58.00,Not Applicable,
Department for Business Energy and Industrial Strategy,Intellectual Property Office,12/12/2017,Advertising Distribution,Innovation Directorate,Www.Conceptfurniture.C,H57720171214rkutxsnjd,367.20,Not Applicable,
Department for Business Energy and Industrial Strategy,Intellectual Property Office,19/12/2017,Entertainment,People Places & Serv Directorate,Tesco Store 2931,H57720171221ndcxdhsoz,26.10,Not Applicable,
Department for Business Energy and Industrial Strategy,Intellectual Property Office,21/12/2017,Seminars and Confereces,IT Directorate,Hie Newport,H57720171223amvshrrtd,64.99,Not Applicable,
Department for Business Energy and Industrial Strategy,Intellectual Property Office,20/12/2017,Seminars and Confereces,IT Directorate,Hie Newport,H57720171222ctumxoiii,86.24,Not Applicable,
Department for Business Energy and Industrial Strategy,Intellectual Property Office,14/12/2017,Seminars and Confereces,IT Directorate,Hie Newport,H57720171216sogjccjxf,149.98,Not Applicable,
Department for Business Energy and Industrial Strategy,Intellectual Property Office,30/11/2017,Seminars and Confereces,IT Directorate,What,H57720171202eokvjajyn,12.58,Not Applicable,
Department for Business Energy and Industrial Strategy,Intellectual Property Office,30/11/2017,Seminars and Confereces,IT Directorate,Hie Newport,H57720171202loebehqcq,207.00,Not Applicable,
Department for Business Energy and Industrial Strategy,Intellectual Property Office,19/12/2017,Career Development Services,Copyright and Enforcement Directorate,Smartvision Europe,H57720171221yyfqbvegm,300.00,Not Applicable,
Department for Business Energy and Industrial Strategy,Intellectual Property Office,11/12/2017,Office Stationery,Finance Directorate,Xma Ltd,H57720171213hzbftenbf,319.92,Not Applicable,
Department for Business Energy and Industrial Strategy,Intellectual Property Office,11/12/2017,Office Stationery,Finance Directorate,Xma Ltd,H57720171213qnjolfnzz,272.42,Not Applicable,
Department for Business Energy and Industrial Strategy,Intellectual Property Office,07/12/2017,Office Stationery,People Places & Serv Directorate,Screwfix Direct,H57720171209oxgepkded,120.68,Not Applicable,
Department for Business Energy and Industrial Strategy,Intellectual Property Office,22/12/2017,Entertainment,Finance Directorate,Amazon Svcs Eu-Uk Amazon.,H57720171227egxeoupyy,-22.00,Not Applicable,
Department for Business Energy and Industrial Strategy,Intellectual Property Office,17/12/2017,Other,People Places & Serv Directorate,Azzurri Restaurant,H57720171219xfgxststf,30.00,Not Applicable,
Department for Business Energy and Industrial Strategy,Intellectual Property Office,07/12/2017,Entertainment,Finance Directorate,Amazon Svcs Eu-Uk Amazon.,H57720171209uecpkgzte,-17.59,Not Applicable,
Department for Business Energy and Industrial Strategy,Intellectual Property Office,01/12/2017,Seminars and Confereces,People Places & Serv Directorate,Coveritlive Scribbl Cov,H57720171205lcllcvtge,37.53,Not Applicable,
Department for Business Energy and Industrial Strategy,Intellectual Property Office,30/11/2017,Other,People Places & Serv Directorate,Asda,H57720171202kfrhtxxep,15.27,Not Applicable,
Department for Business Energy and Industrial Strategy,Intellectual Property Office,13/12/2017,Office Furniture,People Places & Serv Directorate,Www.Viking-Direct.Co.U,H57720171215ydcmokucp,122.23,Not Applicable,
Department for Business Energy and Industrial Strategy,Intellectual Property Office,12/12/2017,Minor Works-Goods,People Places & Serv Directorate,Tg Howell,H57720171214pigvcwoeu,6.88,Not Applicable,
Department for Business Energy and Industrial Strategy,Intellectual Property Office,12/12/2017,Office Stationery,People Places & Serv Directorate,Amazon Eu Amazon.Co.Uk,H57720171214rrknwlyvl,48.98,Not Applicable,
Department for Business Energy and Industrial Strategy,Intellectual Property Office,12/12/2017,Minor Works-Goods,People Places & Serv Directorate,Tg Howell,H57720171214snclqjnfn,14.82,Not Applicable,
Department for Business Energy and Industrial Strategy,Intellectual Property Office,12/12/2017,Office Stationery,People Places & Serv Directorate,Ring O Roses,H57720171214vppptdoey,180.00,Not Applicable,
Department for Business Energy and Industrial Strategy,Intellectual Property Office,12/12/2017,Minor Works-Goods,People Places & Serv Directorate,Tlc Southern,H57720171214yddmgrfto,129.36,Not Applicable,
Department for Business Energy and Industrial Strategy,Intellectual Property Office,11/12/2017,Office Stationery,People Places & Serv Directorate,Healthy Workstations Ltd,H57720171213jxniltqzy,141.60,Not Applicable,
Department for Business Energy and Industrial Strategy,Intellectual Property Office,05/12/2017,Office Stationery,People Places & Serv Directorate,Amazon UK Marketplace,H57720171207brsuxvpqw,20.58,Not Applicable,
Department for Business Energy and Industrial Strategy,Intellectual Property Office,15/12/2017,Office Stationery,People Places & Serv Directorate,Halfords 0833,H57720171219fjscrvdqb,19.99,Not Applicable,
Department for Business Energy and Industrial Strategy,Intellectual Property Office,16/12/2017,Office Stationery,People Places & Serv Directorate,Amazon UK Retail,H57720171219qdwvevdaq,18.62,Not Applicable,
Department for Business Energy and Industrial Strategy,Intellectual Property Office,14/12/2017,Office Stationery,People Places & Serv Directorate,Amazon UK Marketplace,H57720171216aofhechlg,18.68,Not Applicable,
Department for Business Energy and Industrial Strategy,Intellectual Property Office,03/12/2017,Office Stationery,People Places & Serv Directorate,Amazon UK Prime Amzn.Co.U,H57720171205mcvouotaq,-79.00,Not Applicable,
Department for Business Energy and Industrial Strategy,Intellectual Property Office,02/12/2017,Office Stationery,People Places & Serv Directorate,Amazon UK Prime Amzn.Co.U,H57720171205ryhxlurqw,-7.99,Not Applicable,
Department for Business Energy and Industrial Strategy,Intellectual Property Office,02/12/2017,Office Stationery,People Places & Serv Directorate,Amazon UK Prime Amzn.Co.U,H57720171205soxekqkyx,79.00,Not Applicable,
Department for Business Energy and Industrial Strategy,Intellectual Property Office,01/12/2017,Office Stationery,People Places & Serv Directorate,Halfords 0833,H57720171205xsdumxdbl,19.49,Not Applicable,
Department for Business Energy and Industrial Strategy,Intellectual Property Office,17/12/2017,Advertising Distribution,Innovation Directorate,Twitonomy.Com,H57720171219rtlythkul,14.71,Not Applicable,
Department for Business Energy and Industrial Strategy,Intellectual Property Office,21/12/2017,Office Stationery,Finance Directorate,Amazon Svcs Eu-Uk Amazon.,H57720171223qlsnnkdkn,7.06,Not Applicable,
Department for Business Energy and Industrial Strategy,Intellectual Property Office,20/12/2017,Software Maintenance,IT Directorate,Amazon UK Marketplace,H57720171222hyuuktxer,109.00,Not Applicable,
Department for Business Energy and Industrial Strategy,Intellectual Property Office,15/12/2017,Software Maintenance,IT Directorate,Amazon UK Marketplace,H57720171219dygkettuu,154.22,Not Applicable,
Department for Business Energy and Industrial Strategy,Intellectual Property Office,15/12/2017,Software Maintenance,IT Directorate,Amazon UK Marketplace,H57720171219ejxgcmevd,17.14,Not Applicable,
Department for Business Energy and Industrial Strategy,Intellectual Property Office,15/12/2017,Software Maintenance,IT Directorate,Amazon UK Marketplace,H57720171219mvnkpfxkr,32.19,Not Applicable,
Department for Business Energy and Industrial Strategy,Intellectual Property Office,15/12/2017,Software Maintenance,IT Directorate,Www.Dickiesstore.Co.Uk,H57720171219uwmlxtoxu,42.99,Not Applicable,
Department for Business Energy and Industrial Strategy,Intellectual Property Office,15/12/2017,Software Maintenance,IT Directorate,Amazon UK Marketplace,H57720171219xducnsfyk,139.00,Not Applicable,
Department for Business Energy and Industrial Strategy,Intellectual Property Office,19/12/2017,Network and infrastructure H/W,IT Directorate,Currys S/s,H57720171221cgdwnwsen,159.00,Not Applicable,
Department for Business Energy and Industrial Strategy,Intellectual Property Office,18/12/2017,Network and infrastructure H/W,IT Directorate,Amazon UK Marketplace,H57720171220eeywhiywh,55.92,Not Applicable,
Department for Business Energy and Industrial Strategy,Intellectual Property Office,18/12/2017,Network and infrastructure H/W,IT Directorate,Amazon UK Marketplace,H57720171220idxlephmn,87.92,Not Applicable,
Department for Business Energy and Industrial Strategy,Intellectual Property Office,13/12/2017,Network and infrastructure H/W,IT Directorate,Www.Johnlewis.Com,H57720171216harwixqhf,552.00,Not Applicable,
Department for Business Energy and Industrial Strategy,Intellectual Property Office,06/12/2017,Network and infrastructure H/W,IT Directorate,Amazon UK Retail,H57720171208zrggoxjii,14.99,Not Applicable,
Department for Business Energy and Industrial Strategy,Intellectual Property Office,02/12/2017,Network and infrastructure H/W,IT Directorate,Amazon UK Marketplace,H57720171205deodwvngk,25.97,Not Applicable,
Department for Business Energy and Industrial Strategy,Intellectual Property Office,01/12/2017,Network and infrastructure H/W,IT Directorate,Amazon UK Retail Amazon.C,H57720171205gvlmrqjyd,104.97,Not Applicable,
Department for Business Energy and Industrial Strategy,Intellectual Property Office,01/12/2017,Network and infrastructure H/W,IT Directorate,Amazon UK Marketplace,H57720171205kdartqdkq,24.95,Not Applicable,
Department for Business Energy and Industrial Strategy,Intellectual Property Office,01/12/2017,Network and infrastructure H/W,IT Directorate,Amazon UK Marketplace,H57720171205vronzukmm,38.95,Not Applicable,
Department for Business Energy and Industrial Strategy,Intellectual Property Office,20/12/2017,Steering Board,People Places & Serv Directorate,Marks&spencer Plc,H57720171222ujqrhxtma,6.00,Not Applicable,
Department for Business Energy and Industrial Strategy,Intellectual Property Office,30/11/2017,Steering Board,People Places & Serv Directorate,Tesco Stores 5177,H57720171202ujlndiiqn,11.00,Not Applicable,
Department for Business Energy and Industrial Strategy,Intellectual Property Office,28/12/2017,Software Maintenance,Trade Mark Directorate,The Intellectual Property,H57720171230efbmrtsfg,-50.00,Not Applicable,
Department for Business Energy and Industrial Strategy,Intellectual Property Office,28/12/2017,Software Maintenance,Trade Mark Directorate,The Intellectual Property,H57720171230fcejkfrrg,-50.00,Not Applicable,
Department for Business Energy and Industrial Strategy,Intellectual Property Office,28/12/2017,Software Maintenance,Trade Mark Directorate,The Intellectual Property,H57720171230gofuilepv,-50.00,Not Applicable,
Department for Business Energy and Industrial Strategy,Intellectual Property Office,28/12/2017,Software Maintenance,Trade Mark Directorate,The Intellectual Property,H57720171230itreoprvw,-50.00,Not Applicable,
Department for Business Energy and Industrial Strategy,Intellectual Property Office,28/12/2017,Software Maintenance,Trade Mark Directorate,The Intellectual Property,H57720171230kkjuicruh,-50.00,Not Applicable,
Department for Business Energy and Industrial Strategy,Intellectual Property Office,28/12/2017,Software Maintenance,Trade Mark Directorate,The Intellectual Property,H57720171230mtpdowlcv,-50.00,Not Applicable,
Department for Business Energy and Industrial Strategy,Intellectual Property Office,28/12/2017,Software Maintenance,Trade Mark Directorate,The Intellectual Property,H57720171230rpxylpugl,-170.00,Not Applicable,
Department for Business Energy and Industrial Strategy,Intellectual Property Office,28/12/2017,Software Maintenance,Trade Mark Directorate,The Intellectual Property,H57720171230sewnawvbs,-170.00,Not Applicable,
Department for Business Energy and Industrial Strategy,Intellectual Property Office,28/12/2017,Software Maintenance,Trade Mark Directorate,The Intellectual Property,H57720171230tbjztyyvr,-50.00,Not Applicable,
Department for Business Energy and Industrial Strategy,Intellectual Property Office,28/12/2017,Software Maintenance,Trade Mark Directorate,The Intellectual Property,H57720171230uitvlaqnx,-50.00,Not Applicable,
Department for Business Energy and Industrial Strategy,Intellectual Property Office,21/12/2017,Software Maintenance,Trade Mark Directorate,The Intellectual Property,H57720171227bcsbvuvuv,-170.00,Not Applicable,
Department for Business Energy and Industrial Strategy,Intellectual Property Office,21/12/2017,Software Maintenance,Trade Mark Directorate,The Intellectual Property,H57720171227bqsiqofth,-50.00,Not Applicable,
Department for Business Energy and Industrial Strategy,Intellectual Property Office,21/12/2017,Software Maintenance,Trade Mark Directorate,The Intellectual Property,H57720171227bykqgyrut,-170.00,Not Applicable,
Department for Business Energy and Industrial Strategy,Intellectual Property Office,21/12/2017,Software Maintenance,Trade Mark Directorate,The Intellectual Property,H57720171227cqefuvxfn,-50.00,Not Applicable,
Department for Business Energy and Industrial Strategy,Intellectual Property Office,21/12/2017,Software Maintenance,Trade Mark Directorate,The Intellectual Property,H57720171227favednume,-170.00,Not Applicable,
Department for Business Energy and Industrial Strategy,Intellectual Property Office,21/12/2017,Software Maintenance,Trade Mark Directorate,The Intellectual Property,H57720171227nmmjbhbdf,-50.00,Not Applicable,
Department for Business Energy and Industrial Strategy,Intellectual Property Office,21/12/2017,Software Maintenance,Trade Mark Directorate,The Intellectual Property,H57720171227qkzgybglv,-170.00,Not Applicable,
Department for Business Energy and Industrial Strategy,Intellectual Property Office,21/12/2017,Software Maintenance,Trade Mark Directorate,The Intellectual Property,H57720171227qwvqroihe,-50.00,Not Applicable,
Department for Business Energy and Industrial Strategy,Intellectual Property Office,21/12/2017,Software Maintenance,Trade Mark Directorate,The Intellectual Property,H57720171227rylwkbiwg,-170.00,Not Applicable,
Department for Business Energy and Industrial Strategy,Intellectual Property Office,21/12/2017,Software Maintenance,Trade Mark Directorate,The Intellectual Property,H57720171227uxilobryv,-50.00,Not Applicable,
Department for Business Energy and Industrial Strategy,Intellectual Property Office,21/12/2017,Software Maintenance,Trade Mark Directorate,The Intellectual Property,H57720171227waiempjej,-50.00,Not Applicable,
Department for Business Energy and Industrial Strategy,Intellectual Property Office,19/12/2017,Software Maintenance,Trade Mark Directorate,The Intellectual Property,H57720171221egiiifosi,50.00,Not Applicable,
Department for Business Energy and Industrial Strategy,Intellectual Property Office,10/12/2017,Software Maintenance,Trade Mark Directorate,The Intellectual Property,H57720171212lmyxcvyed,170.00,Not Applicable,
Department for Business Energy and Industrial Strategy,Intellectual Property Office,30/11/2017,Software Maintenance,Trade Mark Directorate,The Intellectual Property,H57720171205aqgmfvisf,50.00,Not Applicable,
Department for Business Energy and Industrial Strategy,Intellectual Property Office,13/12/2017,Seminars and Confereces,People Places & Serv Directorate,Wp-Haymarket Publi,H57720171215qofqbwree,1812.00,Not Applicable,
Department for Business Energy and Industrial Strategy,Intellectual Property Office,22/12/2017,Overseas Patent Specifications,Patent Directorate,Wiley Article Pdf,H57720171227hqdzfhsjg,35.20,Not Applicable,
Department for Business Energy and Industrial Strategy,Intellectual Property Office,19/12/2017,Overseas Patent Specifications,Patent Directorate,Cdn Sci Pub Nrcpres,H57720171221crbxovlse,23.18,Not Applicable,
Department for Business Energy and Industrial Strategy,Intellectual Property Office,18/12/2017,Overseas Patent Specifications,Patent Directorate,Wiley Article Pdf,H57720171220hhxleaqzt,35.28,Not Applicable,
Department for Business Energy and Industrial Strategy,Intellectual Property Office,18/12/2017,Overseas Patent Specifications,Patent Directorate,Rei,H57720171220ibdpditpq,38.95,Not Applicable,
Department for Business Energy and Industrial Strategy,Intellectual Property Office,14/12/2017,Overseas Patent Specifications,Patent Directorate,Rei,H57720171216vjsowmryn,33.26,Not Applicable,
Department for Business Energy and Industrial Strategy,Intellectual Property Office,14/12/2017,Overseas Patent Specifications,Patent Directorate,Wiley Article Pdf,H57720171216xhtfquwht,54.58,Not Applicable,
Department for Business Energy and Industrial Strategy,Intellectual Property Office,07/12/2017,Overseas Patent Specifications,Patent Directorate,Rei,H57720171209robxdfmhq,33.35,Not Applicable,
Department for Business Energy and Industrial Strategy,Intellectual Property Office,30/11/2017,Overseas Patent Specifications,Patent Directorate,Rei,H57720171202eevcskwtg,25.76,Not Applicable,
Department for Business Energy and Industrial Strategy,Intellectual Property Office,12/12/2017,Software Maintenance,IT Directorate,Www.Aha.Io 1-888-926-2240,H57720171215uwymeizso,95.91,Not Applicable,
Department for Business Energy and Industrial Strategy,Intellectual Property Office,01/12/2017,Network and infrastructure H/W,IT Directorate,Media & Communications L,H57720171205dbhwfgfrd,429.00,Not Applicable,
Department for Business Energy and Industrial Strategy,Intellectual Property Office,19/12/2017,Career Development Services,IT Directorate,Brit Psychological,H57720171221fybvrsusx,176.00,Not Applicable,
Department for Business Energy and Industrial Strategy,Intellectual Property Office,18/12/2017,Career Development Services,IT Directorate,Paypal,H57720171220ifrnhqgib,19.95,Not Applicable,
Department for Business Energy and Industrial Strategy,Intellectual Property Office,02/12/2017,Minor Works-Goods,People Places & Serv Directorate,Amazon UK Retail Amazon.C,H57720171205qgqkafrrt,30.18,Not Applicable,
Department for Business Energy and Industrial Strategy,Intellectual Property Office,20/12/2017,Advertising Distribution,Innovation Directorate,Subway,H57720171222tykipmboj,39.00,Not Applicable,
Department for Business Energy and Industrial Strategy,Intellectual Property Office,28/12/2017,Software Maintenance,IT Directorate,Media & Communications L,H57720171230iprpicihp,270.00,Not Applicable,
Department for Business Energy and Industrial Strategy,Intellectual Property Office,22/12/2017,Software Maintenance,IT Directorate,Www.Cablemonkey.Co.Uk,H57720171227ypoidesyi,296.52,Not Applicable,
Department for Business Energy and Industrial Strategy,Intellectual Property Office,21/12/2017,Minor Works-Goods,People Places & Serv Directorate,Ourweighltd,H57720171223smvumrxno,175.80,Not Applicable,
Department for Business Energy and Industrial Strategy,Intellectual Property Office,19/12/2017,Minor Works-Goods,People Places & Serv Directorate,Amazon Svcs Eu-Uk Amazon.,H57720171221ewnnpnepb,88.65,Not Applicable,
Department for Business Energy and Industrial Strategy,Intellectual Property Office,15/12/2017,Minor Works-Goods,People Places & Serv Directorate,The Barcode Warehouse,H57720171219wrrylgjwf,176.06,Not Applicable,
Department for Business Energy and Industrial Strategy,Intellectual Property Office,05/12/2017,Minor Works-Goods,People Places & Serv Directorate,Tfl Road Charge,H57720171208temqgebku,11.50,Not Applicable,
Department for Business Energy and Industrial Strategy,Intellectual Property Office,01/12/2017,Office Stationery,People Places & Serv Directorate,South Wales Suppliers,H57720171205numnyargf,97.20,Not Applicable,
Department for Business Energy and Industrial Strategy,Intellectual Property Office,01/12/2017,Office Stationery,People Places & Serv Directorate,South Wales Suppliers,H57720171205vdwvifkld,14.40,Not Applicable,
Department for Business Energy and Industrial Strategy,Intellectual Property Office,01/12/2017,Office Stationery,People Places & Serv Directorate,South Wales Suppliers,H57720171205zqjypnetj,30.00,Not Applicable,
Department for Business Energy and Industrial Strategy,Intellectual Property Office,19/12/2017,Office Stationery,People Places & Serv Directorate,Healthy Workstations Ltd,H57720171221jtpxlxvct,38.04,Not Applicable,
Department for Business Energy and Industrial Strategy,Intellectual Property Office,19/12/2017,Office Stationery,People Places & Serv Directorate,Securedatarecyclin,H57720171221poffupdpx,999.00,Not Applicable,
Department for Business Energy and Industrial Strategy,Intellectual Property Office,19/12/2017,Office Stationery,People Places & Serv Directorate,Securedatarecyclin,H57720171221wtdhckylb,15.00,Not Applicable,
Department for Business Energy and Industrial Strategy,Intellectual Property Office,08/12/2017,Office Stationery,People Places & Serv Directorate,Healthy Workstations Ltd,H57720171212dypqlknlh,107.34,Not Applicable,
Department for Business Energy and Industrial Strategy,Intellectual Property Office,16/12/2017,Seminars and Confereces,People Places & Serv Directorate,Przcharge.Prezi.Com,H57720171219amzlpduvv,15.60,Not Applicable,
Department for Business Energy and Industrial Strategy,Intellectual Property Office,17/12/2017,Network and infrastructure H/W,People Places & Serv Directorate,Asda Living Store 4346,H57720171219jpcbyuhos,20.00,Not Applicable,
Department for Business Energy and Industrial Strategy,Intellectual Property Office,12/12/2017,Seminars and Confereces,People Places & Serv Directorate,Amazon UK Marketplace,H57720171214nmndpqyxm,6.99,Not Applicable,
Department for Business Energy and Industrial Strategy,Intellectual Property Office,09/12/2017,Seminars and Confereces,People Places & Serv Directorate,Amazon UK Marketplace,H57720171212ghknamryr,19.99,Not Applicable,
Department for Business Energy and Industrial Strategy,Intellectual Property Office,07/12/2017,Seminars and Confereces,People Places & Serv Directorate,Camaloon,H57720171209mtywictni,94.59,Not Applicable,
Department for Business Energy and Industrial Strategy,Intellectual Property Office,12/12/2017,Advertising Distribution,Innovation Directorate,Campaignmonitor.Co,H57720171213cildtggky,73.16,Not Applicable,
Department for Business Energy and Industrial Strategy,Intellectual Property Office,22/12/2017,Fixed Telecoms Equipment,IT Directorate,Paypal,H57720171227bfxhvepxc,108.00,Not Applicable,
Department for Business Energy and Industrial Strategy,Intellectual Property Office,20/12/2017,Office Stationery,Finance Directorate,Www.Ukpos.Com,H57720171222nnfguqvtf,434.62,Not Applicable,
Department for Business Energy and Industrial Strategy,Intellectual Property Office,18/12/2017,Perpetual Licences,IT Directorate,Meetingzone Ltd,H57720171220qqevvbjdt,531.34,Not Applicable,
Department for Business Energy and Industrial Strategy,Intellectual Property Office,15/12/2017,Fixed Telecoms Equipment,IT Directorate,Paypal,H57720171219tiglhbgpq,90.00,Not Applicable,
Department for Business Energy and Industrial Strategy,Intellectual Property Office,11/12/2017,Fixed Telecoms Equipment,IT Directorate,Paypal,H57720171213peujyupwe,135.00,Not Applicable,
Department for Business Energy and Industrial Strategy,Intellectual Property Office,08/12/2017,Books,Patent Directorate,Amazon UK Retail,H57720171212fyfqtdwyh,73.83,Not Applicable,
Department for Business Energy and Industrial Strategy,Intellectual Property Office,07/12/2017,Books,Patent Directorate,Amazon UK Retail,H57720171209erujfyxvv,221.48,Not Applicable,
Department for Business Energy and Industrial Strategy,Intellectual Property Office,06/12/2017,Books,Patent Directorate,British Standards,H57720171208stfcprqqq,60.00,Not Applicable,
Department for Business Energy and Industrial Strategy,Intellectual Property Office,01/12/2017,Office Stationery,People Places & Serv Directorate,Amazon.Co.Uk,H57720171205apxhqqfeu,305.22,Not Applicable,
Department for Business Energy and Industrial Strategy,Intellectual Property Office,01/12/2017,Office Stationery,People Places & Serv Directorate,Amazon.Co.Uk,H57720171205apxhqqfeu,305.21,Not Applicable,
Department for Business Energy and Industrial Strategy,Intellectual Property Office,03/12/2017,Books,Patent Directorate,Amazon UK Retail,H57720171205bdjwgiiay,183.45,Not Applicable,
Department for Business Energy and Industrial Strategy,Intellectual Property Office,03/12/2017,Books,Patent Directorate,Amazon UK Retail,H57720171205cvyxhatpl,183.45,Not Applicable,
Department for Business Energy and Industrial Strategy,Intellectual Property Office,03/12/2017,Books,Patent Directorate,Amazon UK Retail,H57720171205grwhbbrxw,36.69,Not Applicable,
Department for Business Energy and Industrial Strategy,Intellectual Property Office,03/12/2017,Books,Patent Directorate,Amazon UK Retail,H57720171205xchoiryfs,36.69,Not Applicable,
Department for Business Energy and Industrial Strategy,Intellectual Property Office,20/12/2017,Career Development Services,People Places & Serv Directorate,Subway,H57720171222qeejpvhqc,54.00,Not Applicable,
Department for Business Energy and Industrial Strategy,Intellectual Property Office,19/12/2017,Career Development Services,People Places & Serv Directorate,Asda Superstore 4928,H57720171221cwjhuuigj,18.80,Not Applicable,
Department for Business Energy and Industrial Strategy,Intellectual Property Office,18/12/2017,Career Development Services,People Places & Serv Directorate,Asda Superstore 4928,H57720171220utbrjntor,72.46,Not Applicable,
Department for Business Energy and Industrial Strategy,Intellectual Property Office,12/12/2017,Career Development Services,People Places & Serv Directorate,Subway,H57720171215vnjitbnxf,96.00,Not Applicable,
Department for Business Energy and Industrial Strategy,Intellectual Property Office,06/12/2017,Career Development Services,People Places & Serv Directorate,Paypal,H57720171208fpvvostou,201.60,Not Applicable,
Department for Business Energy and Industrial Strategy,Intellectual Property Office,06/12/2017,Career Development Services,People Places & Serv Directorate,Amazon UK Retail,H57720171208zpfgpaymc,100.59,Not Applicable,
Department for Business Energy and Industrial Strategy,Intellectual Property Office,01/12/2017,Career Development Services,People Places & Serv Directorate,Subway,H57720171205munulbahp,51.70,Not Applicable,
